{"text_format":"3","workbook":"xlsx","n_sheets":3,"sheets":["Inventario successione","Beni successione","Passività successione"],"not_rendered":{"defined_names":1},"read":"whole","date_system":"1900"}

{"sheet":"Inventario successione","index":0,"n_rows":45,"n_cols":35,"rows_kept":45,"merged":[[0,1,0,30],[0,31,0,39],[1,1,5,39],[6,1,6,6],[6,7,6,39],[7,1,7,6],[7,7,7,39],[9,1,9,6],[9,7,9,39],[10,1,10,6],[10,7,10,39],[11,1,11,6],[11,7,11,20],[11,21,11,26],[11,27,11,30],[11,31,11,33],[11,34,11,39],[12,1,12,6],[12,7,12,20],[12,21,12,26],[13,1,13,6],[13,7,13,20],[13,21,13,26],[14,1,14,6],[14,7,14,20],[14,21,14,26],[15,1,15,6],[17,1,17,39],[18,1,18,6],[18,7,18,12],[18,13,18,15],[18,16,18,18],[18,19,18,26],[18,27,18,31],[18,32,18,39],[19,1,19,6],[19,7,19,12],[19,13,19,15],[19,16,19,18],[19,19,19,26],[19,27,19,31],[19,32,19,39],[20,1,20,6],[20,7,20,12],[20,13,20,15],[20,16,20,18],[20,19,20,26],[20,27,20,31],[20,32,20,39],[21,1,21,6],[21,7,21,12],[21,13,21,15],[21,16,21,18],[21,19,21,26],[21,27,21,31],[21,32,21,39],[22,1,22,6],[22,7,22,12],[22,13,22,15],[22,16,22,18],[22,19,22,26],[22,27,22,31],[22,32,22,39],[23,1,23,6],[23,7,23,12],[23,13,23,15],[23,16,23,18],[23,19,23,26],[23,27,23,31],[23,32,23,39],[25,1,25,39],[26,1,26,6],[26,7,26,12],[26,13,26,18],[26,19,26,26],[26,27,26,31],[26,32,26,39],[27,1,27,6],[27,7,27,12],[27,13,27,18],[27,19,27,26],[27,27,27,31],[27,32,27,39],[28,1,28,6],[28,7,28,12],[28,13,28,18],[28,19,28,26],[28,27,28,31],[28,32,28,39],[29,1,29,6],[29,7,29,12],[29,13,29,18],[29,19,29,26],[29,27,29,31],[29,32,29,39],[30,1,30,6],[30,7,30,12],[30,13,30,18],[30,19,30,26],[30,27,30,31],[30,32,30,39],[31,1,31,6],[31,7,31,12],[31,13,31,18],[31,19,31,26],[31,27,31,31],[31,32,31,39],[33,1,33,12],[33,14,33,39],[34,1,34,12],[34,14,34,21],[34,22,34,25],[34,26,34,33],[34,34,34,39],[35,2,35,12],[35,14,35,21],[35,22,35,25],[35,26,35,33],[35,34,35,39],[36,2,36,12],[36,14,36,21],[36,22,36,25],[36,26,36,33],[36,34,36,39],[37,2,37,12],[37,14,37,21],[37,22,37,25],[37,26,37,33],[37,34,37,39],[38,2,38,12],[38,14,38,21],[38,22,38,25],[38,26,38,33],[38,34,38,39],[39,2,39,12],[39,14,39,21],[39,22,39,25],[39,26,39,33],[39,34,39,39],[40,2,40,12],[40,14,40,21],[40,22,40,25],[40,26,40,33],[40,34,40,39],[41,2,41,12],[41,14,41,21],[41,22,41,25],[41,26,41,33],[41,34,41,39],[42,2,42,12],[42,14,42,21],[42,22,42,25],[42,26,42,33],[42,34,42,38],[43,2,43,12],[43,14,43,21],[43,22,43,25],[43,26,43,33],[43,34,43,39],[44,2,44,12],[44,14,44,21],[44,22,44,25],[44,26,44,33],[44,34,44,39]]}
[]
[null,"Inventario successione"]
[]
[]
[]
[]
[null,"Nome dell'/degli esecutore(i)",{"$nulls":5},"Allan Mattsson"]
[null,"Informazioni di contatto",{"$nulls":5},"4567 Main St, Buffalo, NY 98052"]
[]
[null,"Nome del deceduto",{"$nulls":5},"August Bergquist"]
[null,"Indirizzo",{"$nulls":5},"6789 Main St"]
[null,"Città",{"$nulls":5},"Buffalo",{"$nulls":13},"Provincia",{"$nulls":5},"NY",{"$nulls":3},"Cap",null,null,98052]
[null,"Codice fiscale",{"$nulls":5},"AAA-GG-SSSS",{"$nulls":13},"Professione",{"$nulls":5},"Dentista"]
[null,"Data di nascita",{"$nulls":5},"1965-12-08",{"$nulls":13},"Luogo di nascita",{"$nulls":5},"NY"]
[null,"Data di morte",{"$nulls":5},{"$f":"TODAY()-3","v":"2022-05-09"},{"$nulls":13},"Luogo di morte",{"$nulls":5},"NY"]
[null,"Informazioni aggiuntive"]
[]
[null,"  Coniuge, figli e altri dipendenti"]
[null,"Nome",{"$nulls":5},"Rapporto",{"$nulls":5},"Dipendente",null,null,"Età",null,null,"Indirizzo",{"$nulls":7},"Numero di telefono",{"$nulls":4},"Posta elettronica"]
[null,"Lelia Genovese",{"$nulls":5},"Rappresentante personale",{"$nulls":5},"No",null,null,30]
[null,"Giorgia Fanucci",{"$nulls":5},"Coniuge",{"$nulls":5},"Sì",null,null,35]
[null,"Alexander Martensson",{"$nulls":5},"Bambino",{"$nulls":5},"Sì",null,null,12]
[]
[]
[]
[null,"Consulenti professionali"]
[null,"Tipo di consulente",{"$nulls":5},"Persona di contatto",{"$nulls":5},"Società",{"$nulls":5},"Indirizzo",{"$nulls":7},"Numero di telefono",{"$nulls":4},"Posta elettronica"]
[null,"Contabile"]
[null,"Avvocato/notario"]
[null,"Altro"]
[]
[]
[]
[null,"  Elenco di controllo successione",{"$nulls":12},"  Inventari successione"]
[null,"    Elenco di controllo elementi",{"$nulls":12},"Beni di successione",{"$nulls":7},"Valore (€)",{"$nulls":3},"Passività di successione",{"$nulls":7},"Valore (€)"]
[null,"✔","Ultime volontà, testamento o qualsiasi altro documento",{"$nulls":11},{"$f":"'Beni successione'!B12","v":"Conti bancari"},{"$nulls":7},{"$f":"'Beni successione'!G20","v":{"v":0,"d":"0.00 €"}},{"$nulls":3},{"$f":"'Passività successione'!B11","v":"Mutui"},{"$nulls":7},{"$f":"'Passività successione'!G18","v":{"v":0,"d":"0.00 €"}}]
[null,"✔","Cassaforte contratto noleggio e chiavi",{"$nulls":11},{"$f":"'Beni successione'!B22","v":"Investimenti personali"},{"$nulls":7},{"$f":"'Beni successione'!G30","v":{"v":0,"d":"0.00 €"}},{"$nulls":3},{"$f":"'Passività successione'!B21","v":"Prestiti personali e linee di credito"},{"$nulls":7},{"$f":"'Passività successione'!G28","v":{"v":0,"d":"0.00 €"}}]
[null,"✖","Password per computer e account online",{"$nulls":11},{"$f":"'Beni successione'!B32","v":"Interessi aziendali"},{"$nulls":7},{"$f":"'Beni successione'!G40","v":{"v":0,"d":"0.00 €"}},{"$nulls":3},{"$f":"'Passività successione'!B31","v":"Interessi aziendali"},{"$nulls":7},{"$f":"'Passività successione'!G38","v":{"v":0,"d":"0.00 €"}}]
[null,"✔","Contratti fondo fiduciario",{"$nulls":11},{"$f":"'Beni successione'!B42","v":"Beni immobili"},{"$nulls":7},{"$f":"'Beni successione'!G50","v":{"v":0,"d":"0.00 €"}},{"$nulls":3},{"$f":"'Passività successione'!B41","v":"Carte di credito"},{"$nulls":7},{"$f":"'Passività successione'!G48","v":{"v":0,"d":"0.00 €"}}]
[null,"✔","Assicurazioni sulla vita, malattie/infortuni e polizze assicurative",{"$nulls":11},{"$f":"'Beni successione'!B52","v":"Piani pensionistici"},{"$nulls":7},{"$f":"'Beni successione'!G60","v":{"v":0,"d":"0.00 €"}},{"$nulls":3},{"$f":"'Passività successione'!B51","v":"Altre responsabilità"},{"$nulls":7},{"$f":"'Passività successione'!G58","v":{"v":0,"d":"0.00 €"}}]
[null,"✔","Rendiconti finanziari",{"$nulls":11},{"$f":"'Beni successione'!B62","v":"Assicurazione"},{"$nulls":7},{"$f":"'Beni successione'!G70","v":{"v":0,"d":"0.00 €"}}]
[null,"✔","Dichiarazione dei redditi degli ultimi tre anni",{"$nulls":11},{"$f":"'Beni successione'!B72","v":"Prestiti privati e mutui"},{"$nulls":7},{"$f":"'Beni successione'!G80","v":{"v":0,"d":"0.00 €"}}]
[null,"✔","Certificati di nascita e morte",{"$nulls":11},{"$f":"'Beni successione'!B82","v":"Interesse per altri beni di proprietà e trust"},{"$nulls":7},{"$f":"'Beni successione'!G90","v":{"v":0,"d":"0.00 €"}}]
[null,"✖","Atti, mutui e contratti di locazione",{"$nulls":11},{"$f":"'Beni successione'!B92","v":"Effetti personali e altri beni"},{"$nulls":7},{"$f":"'Beni successione'!G100","v":{"v":0,"d":"0.00 €"}}]
[null,"☐","Fatture e note non pagate",{"$nulls":11},"Totale beni",{"$nulls":7},{"$f":"'Beni successione'!G10","v":{"v":0,"d":"0.00 €"}},{"$nulls":3},"Tabella delle passività",{"$nulls":7},{"$f":"SUM(AI36:AN44)","v":{"v":0,"d":"0.00 €"}}]

{"sheet":"Beni successione","index":1,"n_rows":100,"n_cols":8,"rows_kept":100,"merged":[[0,1,0,7],[1,1,5,7],[6,1,7,7],[11,1,11,7],[12,1,12,7],[21,1,21,7],[22,1,22,7],[31,1,31,7],[32,1,32,7],[41,1,41,7],[42,1,42,7],[51,1,51,7],[52,1,52,7],[61,1,61,7],[62,1,62,7],[71,1,71,7],[72,1,72,7],[81,1,81,7],[82,1,82,7],[91,1,91,7],[92,1,92,7]]}
[]
[null,"Beni successione"]
[]
[]
[]
[]
[null,"Utilizzare questo foglio di lavoro per creare un inventario dei beni di successione. Sarà necessario determinare il valore di mercato di ogni bene di proprietà alla data di morte. Esaminare tutti i record, inclusi i rendiconti finanziari, le polizze assicurative e le dichiarazioni delle imposte per ottenere i valori di mercato. Potrebbe anche essere necessario ottenere una valutazione degli elementi personali (ad esempio, l'opera d'arte, le raccolte, gli oggetti di arte e così via). Assicurarsi di includere anche eventuali beni esterni nell'inventario, ad esempio beni mobiliari, titoli o interessi commerciali esteri. È possibile ottenere assistenza professionale per ottenere un valore di mercato accurato per gli beni esteri."]
[]
[]
[null,"Totale beni",{"$nulls":4},{"$f":"tblBankAccounts[[#Totals],[Saldo ]]+tblPersonalInvestments[[#Totals],[Valore di mercato]]+tblBusinessInterests[[#Totals],[Valore ]]+tblRealEstate[[#Totals],[Prezzo di mercato]]+tblPensionPlans[[#Totals],[Valore ]]+tblInsurance[[#Totals],[Valore in contanti ]]+tblMortgages[[#Totals],[Saldo creditore ]]+tblTrusts[[#Totals],[Icona distribuzione]]+tblOtherAssets[[#Totals],[Valore ]]","v":{"v":0,"d":"€ 0.00"}}]
[]
[null,"Conti bancari"]
[null,"Elencare tutti i conti bancari, inclusi contanti, traveller's cheque, ordini di pagamento e conti con banche commerciali, banche di risparmio, cooperative di credito e così via. Includere tutti i nomi elencati nel conto e il valore in denaro effettivo che si riferisce al valore in dollari esatto e all'importo al cambio al momento del morte."]
[null,"Istituto finanziario ","Indirizzo","Telefono","Numero di conto","Titolo conto","Saldo ","Note"]
[]
[]
[]
[]
[]
[null,"Totale",{"$nulls":4},{"$f":"SUBTOTAL(109,tblBankAccounts[[Saldo ]])","v":{"v":0,"d":"€ 0.00"}}]
[]
[null,"Investimenti personali"]
[null,"Elencare conti correnti, conti marginali, conti di risparmio esentasse, Registered Retirement Savings Plan (piano di risparmio pensionistico registrato), Fondi pensionistici registrati (RRIF), RRIF bloccati, RRSP bloccati, fondi vita, Fondi pensione prescritti, Piani di risparmio per l'istruzione registrati, rendite e così via."]
[null,"Società","Indirizzo","Telefono","Numero di conto","Beneficiario","Valore di mercato","Note"]
[]
[]
[]
[]
[]
[null,"Totale",{"$nulls":4},{"$f":"SUBTOTAL(109,tblPersonalInvestments[Valore di mercato])","v":{"v":0,"d":"€ 0.00"}}]
[]
[null,"Interessi aziendali"]
[null,"Elencare tutti gli interessi aziendali, tra cui imprese individuali, procedure professionali, aziende, partnership, società a responsabilità limitata e partnership, joint ventures e altre entità aziendali non quotate pubblicamente. "]
[null,"Nome azienda","Indirizzo","Telefono","Contatto","Tipo","Valore ","Note"]
[]
[]
[]
[]
[]
[null,"Totale",{"$nulls":4},{"$f":"SUBTOTAL(109,tblBusinessInterests[[Valore ]])","v":{"v":0,"d":"€ 0.00"}}]
[]
[null,"Beni immobili"]
[null,"Elencare qualsiasi proprietà immobiliare di cui deceduto e/o il coniuge/partner sopravvissuto del defunto sono proprietari, comproprietari o hanno un interesse in qualsiasi modo, comprese le proprietà acquistate in complessi ricreativi e multiproprietà. Ottenere copie delle copie degli atti. Fornire una descrizione della proprietà con il relativo indirizzo fisico. Elencare il valore di mercato corretto della proprietà, in base alla valutazione più recente da parte del consulente fiscale."]
[null,"Indirizzo","Titolo tenuto da","Telefono","Contatto","Prezzo di acquisto","Prezzo di mercato","Note"]
[]
[]
[]
[]
[]
[null,"Totale",{"$nulls":3},{"$f":"SUBTOTAL(109,tblRealEstate[Prezzo di acquisto])","v":{"v":0,"d":"€ 0.00"}},{"$f":"SUBTOTAL(109,tblRealEstate[Prezzo di mercato])","v":{"v":0,"d":"€ 0.00"}}]
[]
[null,"Piani pensionistici"]
[null,"Elencare vantaggi definiti, acquisti denaro o contributi definiti, DPSP o RRSP di gruppo e così via."]
[null,"Società","Telefono","Tipo di piano","Beneficiario","Posta elettronica","Valore ","Note"]
[]
[]
[]
[]
[]
[null,"Totale",{"$nulls":4},{"$f":"SUBTOTAL(109,tblPensionPlans[[Valore ]])","v":{"v":0,"d":"€ 0.00"}}]
[]
[null,"Assicurazione"]
[null,"Includere fondi fiduciari, polizze di assicurazione sulla vita con conti di investimento e contabilità denominati trasferiti in seguito alla morte, come beni non di successione. Se il tribunale indaga su tali beni, l'esecutore può facilmente fare riferimento all'elenco di beni non relativi a successioni e spiegare la loro assenza dall'inventario delle successioni."]
[null,"Emittente","Numero polizza","Telefono","Beneficiario","Valore nominale ","Valore in contanti ","Note"]
[]
[]
[]
[]
[]
[null,"Totale",{"$nulls":3},{"$f":"SUBTOTAL(109,tblInsurance[[Valore nominale ]])","v":{"v":0,"d":"€ 0.00"}},{"$f":"SUBTOTAL(109,tblInsurance[[Valore in contanti ]])","v":{"v":0,"d":"€ 0.00"}}]
[]
[null,"Prestiti privati e mutui"]
[null,"Elencare i prestiti privati e i mutui di cui la persona deceduta era intestataria."]
[null,"Nome del beneficiario","Indirizzo","Telefono","Tipo","Importo originale","Saldo creditore ","Note"]
[]
[]
[]
[]
[]
[null,"Totale",{"$nulls":3},{"$f":"SUBTOTAL(109,tblMortgages[Importo originale])","v":{"v":0,"d":"€ 0.00"}},{"$f":"SUBTOTAL(109,tblMortgages[[Saldo creditore ]])","v":{"v":0,"d":"€ 0.00"}}]
[]
[null,"Interesse per altri beni di proprietà e trust"]
[null,"Elencare i beni registrati a nome della persona deceduta per conto di altri (ad esempio i beni di proprietà della persona deceduta come fiduciario o i beni detenuti da procura)."]
[null,"Nome proprietà immobiliare/trust","Nome dell'esecutore/amministratore fiduciario","Telefono","Indirizzo","Posta elettronica","Icona distribuzione","Note"]
[]
[]
[]
[]
[]
[null,"Totale",{"$nulls":4},{"$f":"SUBTOTAL(109,tblTrusts[Icona distribuzione])","v":{"v":0,"d":"€ 0.00"}}]
[]
[null,"Effetti personali e altri beni"]
[null,"Elencare tutti gli elementi personali, ad esempio automobili, gioielli, arte, oggetti d'antiquariato, mobili. Includere gli elementi che potrebbero essere stati conservati in una cassetta di sicurezza o in custodia."]
[null,"Descrizione elemento","Luogo","Telefono","Contatto","Beneficiario","Valore ","Note"]
[]
[]
[]
[]
[]
[null,"Totale",{"$nulls":4},{"$f":"SUBTOTAL(109,tblOtherAssets[[Valore ]])","v":{"v":0,"d":"€ 0.00"}}]

{"sheet":"Passività successione","index":2,"n_rows":58,"n_cols":8,"rows_kept":58,"merged":[[0,1,0,7],[1,1,5,7],[6,1,6,7],[10,1,10,7],[20,1,20,7],[30,1,30,7],[40,1,40,7],[50,1,50,7]]}
[]
[null,"Passività successione"]
[]
[]
[]
[]
[null,"Usare questo foglio di lavoro per acquisire i dettagli delle passività della proprietà, sia nazionali che estere. Sarà necessaria una valutazione di ogni passività alla data di morte."]
[]
[null,"Totale beni",{"$nulls":4},{"$f":"SUM(G18,G28,G38,G48,G58)","v":{"v":0,"d":"€ 0.00"}}]
[]
[null,"Mutui"]
[null,"Istituto finanziario ","Indirizzo","Telefono","Titolo detenuto da","Numero di conto","Saldo ","Note"]
[]
[]
[]
[]
[]
[null,"Totale",{"$nulls":4},{"$f":"SUBTOTAL(109,tblBankAccounts2[[Saldo ]])","v":{"v":0,"d":"€ 0.00"}}]
[]
[]
[null,"Prestiti personali e linee di credito"]
[null,"Istituto finanziario","Indirizzo","Telefono"," Numero di conto","Tipo","Saldo ","Note"]
[]
[]
[]
[]
[]
[null,"Totale",{"$nulls":4},{"$f":"SUBTOTAL(109,tblPersonalInvestments3[[Saldo ]])","v":{"v":0,"d":"€ 0.00"}}]
[]
[]
[null,"Interessi aziendali"]
[null,"Nome azienda","Indirizzo"," Telefono"," Contatto","Tipo","Valore ","Note"]
[]
[]
[]
[]
[]
[null,"Totale",{"$nulls":4},{"$f":"SUBTOTAL(109,tblBusinessInterests4[[Valore ]])","v":{"v":0,"d":"€ 0.00"}}]
[]
[]
[null,"Carte di credito"]
[null,"Società di carte di credito","Indirizzo società","Telefono","Numero carta","Data di scadenza ","Saldo ","Note"]
[]
[]
[]
[]
[]
[null,"Totale",{"$nulls":3},{"$f":"SUBTOTAL(109,tblRealEstate5[[Data di scadenza ]])","v":{"v":0,"d":"€ 0.00"}},{"$f":"SUBTOTAL(109,tblRealEstate5[[Saldo ]])","v":{"v":0,"d":"€ 0.00"}}]
[]
[]
[null,"Altre responsabilità"]
[null,"Descrizione elemento","Luogo","Telefono","Contatto","Beneficiario","Valore ","Note"]
[]
[]
[]
[]
[]
[null,"Totale",{"$nulls":4},{"$f":"SUBTOTAL(109,tblPensionPlans6[[Valore ]])","v":{"v":0,"d":"€ 0.00"}}]